[Event "Svetozar Gligoric Masters 2022"]
[Site "Belgrade"]
[Date "2022.07.22"]
[Round "8.6"]
[White "Pranav Vijay"]
[Black "Ohanyan, Emin"]
[Result "1/2-1/2"]
[ECO "C82"]
[WhiteElo "2265"]
[BlackElo "2354"]
[Annotator "TA"]
[PlyCount "112"]
[EventDate "2022.07.18"]
[EventCountry "SRB"]
[SourceTitle "playchess.com"]
[Source "ChessBase"]
[SourceQuality "1"]
[TimeControl "40/5400+30:900+30"]

{[%evp 32,112,0,0,0,0,0,0,29,14,19,0,0,0,0,0,0,0,0,0,0,0,0,0,0,0,0,0,29,3,57,47,47,33,33,41,34,33,34,44,42,44,46,0,0,0,0,0,0,0,540,123,108,108,103,27,31,16,16,16,16,16,16,10,10,8,8,8,8,8,8,8,8,6,18,18,18,18,18,18,18,0,0]} 1. e4 {Wedberg,T} e5 2. Nf3 Nc6 3. Bb5 a6 4. Ba4 Nf6 5. O-O Nxe4 6. d4 b5 7. Bb3 d5 8. dxe5 Be6 9. c3 Bc5 10. Nbd2 O-O 11. Bc2 Nxf2 12. Rxf2 f6 13. exf6 Bxf2+ 14. Kxf2 Qxf6 15. Nf1 Ne5 16. Be3 Rae8 17. Bc5 {This bishop pair is nice.} Nxf3 {C82: Open Ruy Lopez: 9 c3 without 9...Be7.} 18. gxf3 {Dancing on a razor blade.} Rf7 19. Kg1 Qxf3 20. Qxf3 Rxf3 21. Kg2 Bg4 22. Ng3 {[#] Against Re2+. Hoping for h3.} h5 {[#] ...h4 is the strong threat.} 23. Rf1 $146 ({Predecessor:} 23. Bg6 Re6 24. Bxh5 Rxg3+ 25. Kxg3 Bxh5 26. a4 Rg6+ 27. Kf2 Rf6+ 28. Kg2 bxa4 29. Rxa4 {½-½ (51) Leko,P (2555)-Jussupow,A (2655) Horgen 1994 CBM 043 [Wedberg,T]}) 23... Rxf1 24. Kxf1 Kf7 25. h4 a5 26. a3 c6 27. Bd3 Rg8 28. Be3 Rb8 29. Ke1 Ke6 30. Kd2 {[%mdl 1024] White has compensation.} Rb7 (30... b4 $11) 31. Bg6 $14 b4 32. cxb4 (32. Bxh5 Bxh5 33. Nxh5 bxa3 34. bxa3 Kf5 $11) 32... axb4 33. a4 Kd6 $1 34. Nxh5 c5 $1 35. Nf4 d4 36. Bf2 b3 37. Be4 (37. Nd3 $14 c4 38. Be4 c3+ 39. Kc1) 37... Re7 $1 $11 38. Bd5 Ra7 $1 39. Bg3 Rxa4 {And now ...c4 would win.} 40. Bxb3 Ra5 $2 {[%mdl 8192]} (40... Ra1 $11 {and Black has nothing to worry.}) 41. Nd3+ $2 (41. Ng6+ $18 {and the rest is easy.} Kc6 42. Ne5+ Kb5 43. Nxg4) 41... Ke7 $16 {[#]} 42. Bc7 $1 Ra6 43. Bd5 {Inhibits Rc6.} (43. Nxc5 $6 Rc6 44. Ba5 (44. Be5 Rxc5 45. Bxd4 Rh5 $15) 44... Rxc5 $11) (43. Be5 $16) 43... Rh6 $11 44. Bf4 ({Much weaker is} 44. Nxc5 Rh5 45. Ba2 Rxc5 $17) 44... Rxh4 {The position is equal.} 45. Bg5+ ({Don't blunder} 45. Nxc5 $2 Rh5 46. Kd3 Rxd5 $19) 45... Kd6 46. Bxh4 (46. Bf3 {keeps more tension.} Rh2+ 47. Kc1 Bxf3 48. Bf4+) 46... Kxd5 47. b3 {Black must now prevent Be7.} Bc8 48. Nf4+ Ke4 49. Bg3 ({But not} 49. Nd3 $6 g5 50. Bxg5 Kd5 $16) 49... g5 50. Nd3 Kd5 51. Ne5 (51. Bb8 $5 {[%cal Rb8a7]}) 51... Ba6 52. Nf3 c4 53. bxc4+ Bxc4 54. Nxg5 Ba6 55. Nf3 Ke4 56. Nxd4 Kxd4 {Weighted Error Value: White=0.23 (precise) /Black=0.22 (precise)} 1/2-1/2

[Event "Svetozar Gligoric Masters 2022"]
[Site "Belgrade"]
[Date "2022.07.22"]
[Round "8.7"]
[White "Srihari L R"]
[Black "Arjun Kalyan"]
[Result "1/2-1/2"]
[ECO "D45"]
[WhiteElo "2431"]
[BlackElo "2499"]
[Annotator "TA"]
[PlyCount "58"]
[EventDate "2022.07.18"]
[EventCountry "SRB"]
[SourceTitle "playchess.com"]
[Source "ChessBase"]
[SourceQuality "1"]
[TimeControl "40/5400+30:900+30"]

{[%evp 23,58,0,0,4,13,8,22,20,52,53,55,20,25,29,50,0,0,0,0,0,0,0,0,0,0,0,0,0,10,0,0,0,0,0,0,0,0]} 1. d4 Nf6 2. c4 e6 3. Nf3 d5 4. Nc3 c6 5. e3 Nbd7 6. Qc2 Bd6 7. b3 O-O 8. Be2 b6 9. O-O Bb7 10. Bb2 Re8 11. Rfe1 Qe7 12. Rad1 Rad8 13. h3 {D45: Semi-Slav: 5 e3.} h6 14. Bf1 Bb4 15. a3 {[#]} Bxa3 $146 ({Predecessor:} 15... Bd6 16. b4 Ra8 17. Nd2 a5 18. bxa5 Rxa5 19. cxd5 cxd5 20. Nb5 Ba6 21. Nxd6 Qxd6 {½-½ (77) Eilmes,D (2314)-Weber,K (2274) ICCF email 2009}) 16. Bxa3 Qxa3 17. Ra1 {[%mdl 64] [#] Deflection} Qd6 18. Rxa7 Qb8 19. Raa1 (19. Rea1 $14) 19... c5 $11 {The position is equal.} 20. cxd5 Nxd5 21. Nxd5 Bxd5 22. e4 Bb7 23. dxc5 bxc5 24. Qc3 Bc6 25. Nd2 Qe5 26. Qxe5 Nxe5 27. Nc4 Nxc4 28. Bxc4 Ra8 $1 {Prevents Ra5.} 29. f3 Kf8 {Weighted Error Value: White=0.07 (flawless) /Black=0.05 (flawless)} 1/2-1/2

[Event "Svetozar Gligoric Masters 2022"]
[Site "Belgrade"]
[Date "2022.07.22"]
[Round "8.8"]
[White "Sedlak, Nikola"]
[Black "Serikbay, Assel"]
[Result "1-0"]
[ECO "B52"]
[WhiteElo "2480"]
[BlackElo "2227"]
[Annotator "TA"]
[PlyCount "137"]
[EventDate "2022.07.18"]
[EventCountry "SRB"]
[SourceTitle "playchess.com"]
[Source "ChessBase"]
[SourceQuality "1"]
[TimeControl "40/5400+30:900+30"]

{[%evp 13,137,12,18,17,20,19,27,6,0,-8,-15,-12,0,0,0,0,70,31,25,29,62,22,30,27,56,49,52,55,52,60,54,22,54,50,62,50,50,50,50,51,63,61,67,0,0,0,0,0,6,0,0,0,0,0,0,0,0,0,25,22,64,56,39,47,44,43,72,72,72,72,81,62,70,75,66,59,77,70,110,93,98,93,93,98,88,84,262,262,262,262,238,212,378,370,387,366,318,307,488,484,712,706,710,695,643,593,1412,1311,12799,12799,12516,12530,7495,4669,12795,12796,12800,12802,12781,12781,10384,9799,6613,6556,4631,1290]} 1. e4 c5 2. Nf3 d6 3. Bb5+ Bd7 4. Bxd7+ Qxd7 5. O-O Nf6 6. Qe2 Nc6 7. c3 e5 8. Rd1 {B52: Sicilian: Moscow Variation with 3...Bd7.} Qg4 9. d3 {[%cal Ob2b4]} Be7 10. Nbd2 {[%cal Bb1d2,Bd2f1,Bf1g3,Bg3f5][%mdl 32] White has an edge.} d5 {[%cal Bd6d5,Bd5d4][%mdl 32] [#]} 11. h3 $146 ({Predecessor:} 11. exd5 Nxd5 12. Nc4 f6 13. Qe4 Qd7 14. Ne3 O-O-O 15. d4 cxd4 16. cxd4 exd4 17. Nxd4 {0-1 (51) Rublevsky,S (2671)-Kozul,Z (2627) Tripoli 2004}) 11... Qe6 12. Nf1 d4 13. Ng3 Nd7 14. Nf5 $36 {[%mdl 2048] White is more active.} Rg8 ({Better is} 14... Bf8 $11) 15. Bd2 {White is more active.} (15. b4 {is more complex.} dxc3 16. bxc5 Bxc5 17. d4) 15... g6 16. Nxe7 Qxe7 17. cxd4 (17. b4 $5 {[%cal Rb4c5]}) 17... cxd4 18. b4 Nd8 19. Rdc1 Ne6 {Inhibits Rc7.} 20. Qd1 f6 21. Qb3 Qf7 22. Rc2 g5 23. Rac1 Kf8 24. Nh2 h5 $1 25. Nf1 {And now Ng3 would win.} h4 {Prevents Ng3.} 26. Nh2 Kg7 27. Ng4 Rgd8 28. g3 (28. a4 $14) 28... Rh8 $11 29. Kg2 Rae8 30. Rh1 Ref8 31. Qd5 Nb6 32. Qa5 Ra8 33. Qa3 Nd7 34. Qb3 Raf8 35. Rcc1 Re8 36. Qd1 f5 37. exf5 Qxf5 38. Qe2 Rhf8 39. Rce1 {[%cal Bc1e1,Be1e4,Be4e5,Be5g5,Bg5g7][%mdl 32]} Kh7 {[%cal Oa7a5]} (39... hxg3 40. fxg3 Qg6 41. h4 $16 (41. Nxe5 Nxe5 42. Qxe5+ Kh7 $11)) 40. Qe4 Qxe4+ 41. Rxe4 Rc8 42. Nxe5 Nxe5 43. Rxe5 Rc2 44. Rd1 (44. Rxe6 Rxd2 45. Rf1 (45. Re7+ Kg6 $11) 45... hxg3 $11) 44... hxg3 45. Kxg3 Ng7 46. Rxg5 Nf5+ 47. Kg4 Nh6+ {[%mdl 64] [#] Discovered Attack} 48. Kh5 $1 Rxf2 {[#]} 49. Rdg1 $1 {Hoping for Rg7+.} Rcxd2 $2 {This move loses the game for Black.} (49... Rc7 $16 50. R1g2 Rf3) 50. Rg7+ $18 {[%mdl 64] Deflection, Double Attack} Kh8 {[%cal Od2d3]} 51. Kxh6 {[%csl Gg1][%cal Rg7g8][%mdl 4096] Endgame KRR-KRR} Rf6+ 52. Kh5 ({Weaker is} 52. R1g6 Rxg6+ 53. Rxg6 Rxd3 $11) 52... Rf5+ $2 (52... Rf8 53. Rxb7 Rxd3) 53. Kg6 {Threatening mate with Rg4.} Rdf2 54. Rxb7 Rf6+ 55. Kh5 ({Resist} 55. Kg5 R2f5+ 56. Kg4 a6 $18) 55... R2f3 (55... Rxa2 {might work better.} 56. Rg6 Rxg6 57. Kxg6 Ra6+ 58. Kf5 Kg8) 56. h4 {White is clearly winning.} Rxd3 (56... R3f5+ $142 57. Rg5 Rf7) 57. Rxa7 Rdf3 58. Rg5 d3 59. Rd7 {Inhibits Rd6.} Rf2 60. Rxd3 Rxa2 61. Rd8+ Kh7 62. Rd7+ Kh8 63. Ra5 Rxa5+ 64. bxa5 {KR-KR} Ra6 65. Rd5 Kg7 66. Kg5 Rg6+ 67. Kf4 {Intending Rg5 and mate.} Kh6 68. h5 Rg1 69. Ke4 {Weighted Error Value: White=0.06 (flawless) /Black=0.22 (precise)} (69. a6 $142 Ra1 70. Rd6+ Kxh5 71. Rc6) 1-0

[Event "Svetozar Gligoric Masters 2022"]
[Site "Belgrade"]
[Date "2022.07.22"]
[Round "8.9"]
[White "Radovanovic, Nikola"]
[Black "Vaibhav Jayant Raut"]
[Result "1/2-1/2"]
[ECO "B21"]
[WhiteElo "2422"]
[BlackElo "2169"]
[Annotator "TA"]
[PlyCount "53"]
[EventDate "2022.07.18"]
[EventCountry "SRB"]
[SourceTitle "playchess.com"]
[Source "ChessBase"]
[SourceQuality "1"]
[TimeControl "40/5400+30:900+30"]

{[%evp 14,53,44,36,40,41,63,41,42,29,47,45,46,37,31,20,20,37,20,22,54,43,22,35,90,109,110,10,30,0,0,-34,0,-16,0,0,0,-8,0,-24,0,7]} 1. e4 c5 2. Nc3 Nc6 3. Bb5 g6 4. Bxc6 dxc6 5. f4 Bg7 6. Nf3 Nf6 7. d3 O-O 8. O-O Ne8 {B21: Sicilian: 2 f4 and Morra Gambit.} 9. Qe1 Bg4 {[#]} 10. Ng5 $146 ({Predecessor:} 10. Ne2 Nc7 11. Be3 b6 12. c3 Qxd3 13. Qf2 Qxe4 14. Ng3 Qc4 15. Ne5 Qe6 16. Rae1 Nd5 17. Nxg4 Qxg4 {0-1 (45) Wasserfallen,B-Vildosola Canales,M (1632) Tornelo INT 2021}) 10... h6 {White is slightly better.} 11. Nf3 Bxf3 12. Rxf3 c4 13. dxc4 Qd4+ $1 14. Kh1 Qxc4 15. b3 Qe6 16. Bb2 Nd6 {[%cal Od6e4]} 17. e5 Nf5 18. Ne4 {Hoping for g4.} Rad8 ({Black should try} 18... Rfd8 $14) 19. Qf2 $16 b6 {Inhibits Nc5.} 20. Re1 ({Better is} 20. g4 $16) 20... c5 21. c3 {[#] aiming for g4.} h5 22. Bc1 Qc6 23. Qe2 Rd5 24. Rd3 Rfd8 25. Red1 Bh6 26. Kg1 b5 27. Rxd5 {Weighted Error Value: White=0.18 (very precise) /Black=0.10 (very precise)} 1/2-1/2

[Event "Svetozar Gligoric Masters 2022"]
[Site "Belgrade"]
[Date "2022.07.22"]
[Round "8.10"]
[White "Muthaiah AL"]
[Black "Shahil Dey"]
[Result "0-1"]
[ECO "D46"]
[WhiteElo "2401"]
[BlackElo "2402"]
[Annotator "TA"]
[PlyCount "70"]
[EventDate "2022.07.18"]
[EventCountry "SRB"]
[SourceTitle "playchess.com"]
[Source "ChessBase"]
[SourceQuality "1"]
[TimeControl "40/5400+30:900+30"]

{[%evp 21,70,-9,11,0,52,41,43,44,35,52,41,41,40,70,111,89,102,31,21,39,110,117,110,79,143,142,142,129,187,142,154,159,196,161,155,149,196,182,179,176,158,119,643,185,167,3,56,-1056,-1040,-1536,-1082]} 1. d4 Nf6 2. c4 c6 3. Nc3 d5 4. e3 e6 5. Nf3 Nbd7 6. Qc2 Bd6 7. Bd3 O-O 8. O-O dxc4 9. Bxc4 b5 10. Bd3 Bb7 11. a3 Rc8 12. Ng5 {[%cal Rd3h7] D46: Semi-Slav: 5 e3 Nbd7 6 Bd3, Black avoids the Meran.} c5 (12... Bxh2+ $11 13. Kxh2 Ng4+ 14. Kg1 Qxg5) 13. Bxh7+ (13. Nxb5 Bxh2+ $1 {[%mdl 512]} 14. Kxh2 Ng4+ 15. Kg1 Qxg5 16. Bxh7+ Kh8 $19) 13... Kh8 {[%cal Od6h2]} 14. f4 {d5 is the strong threat. White is slightly better.} (14. Nxb5 $2 Bxh2+ $1 15. Kxh2 Ng4+ 16. Kg1 Qxg5 $19) 14... g6 {[#]} 15. Bxg6 fxg6 16. Nxb5 Bb8 17. Nxe6 {[#]} Qe7 $146 ({Predecessor:} 17... Qb6 18. Nxf8 Nxf8 19. Qe2 Kg7 20. d5 Nxd5 21. Bd2 Re8 22. Rae1 Bxf4 23. Qf2 Qxb5 24. exf4 Rxe1 25. Rxe1 Qxb2 {½-½ (31) Hoeven,D (2649)-Langeveld,R (2679) ICCF email 2017}) 18. Nxf8 Nxf8 19. Nc3 (19. dxc5 $16 {Strongly threatening b4.} Rxc5 20. Nc3) 19... cxd4 20. exd4 Qd7 (20... Ba6 $1 $14) 21. Be3 Nd5 22. Qf2 Re8 (22... Nh7 $142) 23. Rae1 $16 Qf5 24. Bd2 Ne6 (24... Re6 $16 25. Nxd5 Qxd5) 25. Ne4 {Black must now prevent Qh4+.} Ba6 {[#]} 26. Ng5 $1 {And now Qh4+ would win.} Kg8 {[#]} (26... Nf6 27. Qh4+) 27. Qh4 $1 Nf6 {Prevents Qh7+.} 28. Rf3 {[%cal Bf1f3,Bf3f2,Bf2e2][%mdl 32] Threatens to win with Bb4.} Bb7 (28... Ng7 $16 {was worth a try.} 29. Rxe8+ Ngxe8) 29. Rf2 Ng7 {[#]} 30. Rxe8+ $1 Ngxe8 31. Re2 {[%cal Oe2e8] Hoping for Rxe8+!} Qd5 $2 {[%mdl 8192]} (31... Bd5 $16) 32. Bc3 $2 (32. Qh6 Qf5 {[#]} 33. Rxe8+ $1 {[%mdl 512]} Nxe8 34. Qh7+ Kf8 35. Qxb7) 32... Ng7 $18 33. h3 $2 (33. Nf3 $18 Nfh5 34. Qg5) 33... Ngh5 (33... Nf5 $11 34. Qf2 a5) 34. f5 $2 {[%mdl 8192]} ({But not} 34. Ne6 Bc8 35. Nc5 (35. Qg5 Nxf4 36. Re5 Bxe5 $17) 35... Nxf4 $11) (34. Bd2 $14) 34... Bg3 $19 {This bishop pair is nice.} 35. Qxh5 Nxh5 {Never resign too early!  Weighted Error Value: White=0.83/Black=0.53} 0-1

[Event "Svetozar Gligoric Masters 2022"]
[Site "Belgrade"]
[Date "2022.07.22"]
[Round "8.11"]
[White "Gagunashvili, Merab"]
[Black "Bazyrtsyrenov, Kirill"]
[Result "1/2-1/2"]
[ECO "D02"]
[WhiteElo "2569"]
[BlackElo "2147"]
[Annotator "TA"]
[PlyCount "55"]
[EventDate "2022.07.18"]
[EventCountry "SRB"]
[SourceTitle "playchess.com"]
[Source "ChessBase"]
[SourceQuality "1"]
[TimeControl "40/5400+30:900+30"]

{[%evp 17,55,-3,0,-22,-13,-55,-45,-50,-17,-14,5,-42,-25,-52,-51,-49,0,-31,0,-49,-41,-49,-48,-42,0,-51,20,15,21,-70,-69,-72,-67,-65,-58,-83,-81,-98,-95,-99]} 1. d4 Nf6 2. Nf3 e6 3. Bf4 c5 4. e3 Nc6 5. Nbd2 d5 6. c3 Bd6 7. Bg3 O-O 8. Bd3 b6 9. Ne5 {9.Qe2 is the modern continuation.} Bb7 10. f4 {D02: 1 d4 d5 2 Nf3 sidelines, including 2...Nf6 3 g3 and 2...Nf6 3 Bf4.} Ne7 11. Qc2 c4 12. Be2 {Black is slightly better.} Nf5 13. Bf2 Be7 14. Bf3 (14. g4 $11 Nd6 15. g5) 14... b5 $15 15. O-O Nd6 16. Bh4 Nf5 17. Bf2 Nd6 {[#]} 18. a4 $146 (18. Bh4 $1 $11) ({Predecessor:} 18. Bg3 Rc8 19. Rae1 Nfe4 20. Bxe4 dxe4 21. h3 f5 22. Kh2 Nf7 23. Nxf7 Rxf7 24. Kh1 a5 25. a3 a4 26. Bh2 Bd6 27. Qd1 {1-0 (69) Tomas,A (2124)-Turicar,G (1749) Bosnjaci 2022}) 18... a6 $1 19. Bh4 Nf5 20. Bf2 Nd6 21. b3 (21. Bh4 $1 $11) 21... Nfe4 (21... cxb3 $15 22. Nxb3 Nde4) 22. Bxe4 $11 Nxe4 23. axb5 (23. Nxe4 $11 dxe4 24. axb5 (24. bxc4 f6 $11)) 23... Nxd2 $15 24. Qxd2 axb5 25. Qb2 f6 {[#] ...Rxa1 is the strong threat.} 26. Nf3 Qd7 27. Rfb1 Bc6 28. b4 {Weighted Error Value: White=0.27 (precise) /Black=0.17 (very precise)} 1/2-1/2

[Event "Svetozar Gligoric Masters 2022"]
[Site "Belgrade"]
[Date "2022.07.22"]
[Round "8.12"]
[White "Song, Raymond"]
[Black "Namitbir Singh Walia"]
[Result "1/2-1/2"]
[ECO "D78"]
[WhiteElo "2499"]
[BlackElo "2293"]
[Annotator "TA"]
[PlyCount "80"]
[EventDate "2022.07.18"]
[EventCountry "SRB"]
[SourceTitle "playchess.com"]
[Source "ChessBase"]
[SourceQuality "1"]
[TimeControl "40/5400+30:900+30"]

{[%evp 15,80,0,0,14,0,0,0,15,10,11,26,31,29,23,17,23,30,17,8,10,14,0,0,0,0,0,0,-10,-8,-9,-11,-60,-70,-81,-13,-44,0,0,0,0,0,0,0,0,0,0,0,0,8,0,0,0,0,0,0,0,18,0,0,0,0,0,0,0,0,-5,-7]} 1. d4 Nf6 2. c4 g6 3. g3 c6 4. Bg2 d5 5. Nf3 Bg7 6. O-O O-O 7. Qb3 Qb6 8. Nc3 Rd8 9. Bd2 {D78: Fianchetto Grünfeld: 6 0-0 c6.} Bf5 10. Na4 Qxb3 11. axb3 {[%cal Oa4b6] Hoping for Nb6!} Nbd7 {Against Nb6} 12. Rfc1 {[#]} dxc4 $146 ({Predecessor:} 12... h6 13. e3 g5 14. Ba5 Rdc8 15. Nd2 e6 16. Bb4 Bf8 17. Bxf8 Kxf8 18. b4 a5 {½-½ (56) Ding,L (2799)-Aronian,L (2782) chess24.com INT 2021}) 13. bxc4 e5 14. e3 {[%cal Be2e3,Be3d4][%mdl 32]} Be4 15. Ba5 b6 16. Be1 exd4 17. exd4 Nf8 {[%cal Bd7f8,Bf8e6,Be6c7][%mdl 32]} 18. Nc3 Ne6 19. Nxe4 Nxe4 20. Rd1 f5 {[%cal Re6d4]} 21. d5 cxd5 22. cxd5 Nc7 23. Nd4 (23. Ra2 $11 {should be considered.}) 23... Rxd5 $15 ({Don't take} 23... Nxd5 24. Nc6 Rdc8 25. Rac1 Bxb2 26. Bxe4 fxe4 27. Rc2 $16) 24. Nc6 {[#] Black must now prevent Ne7+.} Rc5 ({But not} 24... Bxb2 25. Ne7+ Kh8 26. Nxd5 $16) (24... Rxd1 $1 $17 25. Rxd1 Bxb2) 25. Rac1 Re8 26. Rxc5 {The position is equal.} Nxc5 27. b4 Ne4 28. Rd7 Nb5 29. Bf1 a6 {[%cal Oe4g3]} 30. Bc4+ Kh8 {[%cal Oe4g3]} 31. Kf1 Rc8 32. f3 Nf6 {Pair of Knights!} (32... Rxc6 $2 33. Rd8+ Bf8 34. Rxf8+ Kg7 35. Rf7+ Kg8 36. Bb3 $18) 33. Rd8+ Rxd8 34. Nxd8 Bf8 35. Ke2 h6 36. Kd3 {[%mdl 1024] White has compensation.} Kh7 37. Nc6 Nc7 38. Bf2 b5 39. Bb3 Nd7 40. h4 Bd6 {Weighted Error Value: White=0.05 (flawless) /Black=0.07 (flawless)} 1/2-1/2

[Event "Svetozar Gligoric Masters 2022"]
[Site "Belgrade"]
[Date "2022.07.22"]
[Round "8.13"]
[White "Taspinar, Yanki"]
[Black "Alexakis, Dimitris"]
[Result "1-0"]
[ECO "B47"]
[WhiteElo "2311"]
[BlackElo "2484"]
[Annotator "TA"]
[PlyCount "71"]
[EventDate "2022.07.18"]
[EventCountry "SRB"]
[SourceTitle "playchess.com"]
[Source "ChessBase"]
[SourceQuality "1"]
[TimeControl "40/5400+30:900+30"]

{[%evp 12,71,48,36,61,25,45,22,39,12,20,24,16,0,0,0,0,0,0,-40,-58,-76,-56,-38,-47,-49,-74,-67,-58,-93,16,16,16,-138,-141,-144,-127,-138,24,0,7,-46,7,8,463,442,29985,29986,29987,743,29975,29976,29976,29977,29985,29986,29993,29994,29994,29995,29997,29998]} 1. e4 c5 2. Nf3 e6 3. d4 cxd4 4. Nxd4 Nc6 5. Nc3 Qc7 6. g3 d6 7. Bg2 Bd7 {B47: Sicilian: Taimanov: 5 Nc3 Qc7 6 f4, 6 g3 and 6 Be2.} 8. O-O {White is more active.} (8. Ndb5 $5 {[%cal Rb5c7]} Qb8 9. Bf4 $14) 8... Nf6 9. h3 Be7 {The position is equal.} 10. Nde2 {[#]} h6 $146 ({Predecessor:} 10... a6 11. g4 h6 12. Be3 g5 13. Qd2 Ne5 14. b3 h5 15. f3 hxg4 16. fxg4 Nh7 17. a4 b6 18. Rfc1 f6 {0-1 (43) Assumpcao,R (2177)-Diamant,A (2505) Goiania 2016}) 11. Nb5 Qb8 12. c4 a6 13. Nbd4 b5 14. cxb5 axb5 15. Be3 O-O 16. Qd2 Nxd4 17. Nxd4 e5 18. Nf5 Bxf5 19. exf5 d5 20. f4 ({Don't blunder} 20. Bxd5 $2 Rd8 21. Bxf7+ Kxf7 $19) 20... Ne4 (20... Rd8 $17 {aiming for ...d4.} 21. Rfd1 Ne4) 21. Qxd5 $11 Nxg3 22. fxe5 $2 Nxf1 $17 23. Rxf1 Ra6 {Inhibits f6.} 24. f6 Bd8 (24... gxf6 $17 {And now ...Rd8 would win.} 25. Bxh6 Rd8) 25. Kh1 $36 {[%mdl 2048] Black must now prevent fxg7. White is more active.} Re6 {[%cal Rd8f6] Threatens to win with ...Bxf6!} 26. Bd4 (26. fxg7 $1 $11 Kxg7 27. Bd4) 26... Bc7 ({Black should try} 26... g6 $15) 27. fxg7 $11 Kxg7 {[%mdl 8192] Black cannot hold the game after this.} (27... Rfe8 $11 {and Black has nothing to worry.}) 28. Rxf7+ $1 $18 {[%mdl 64] [#] Decoy} Kxf7 (28... Rxf7 $18 29. Qxe6 Qf8 30. Qg4+ Kh7 31. Be4+ Kh8 32. e6+ Rg7) 29. Qd7+ Re7 30. e6+ (30. Bd5+ $142 Kg7 31. Qxe7+ Kh8 32. e6+ Be5 33. Bxe5+ Qxe5 34. Qxf8+ Kh7 35. Qf7+ Kh8 36. e7) 30... Kg8 31. Qxe7 {[%csl Gd4][%cal Re7g7] White mates.} Be5 {[#]} 32. Be4 $1 {[%csl Ge4][%cal Re7h7]} Rf1+ (32... Rf5 33. Qd7) 33. Kg2 Rf6 34. Qh7+ Kf8 35. Bc5+ {A strong pair of Bishops.} Bd6 36. e7+ {Weighted Error Value: White=0.28 (precise) /Black=0.85} 1-0